Cogmind - Beta 15 @@@ ROGUE MODE // 2025.05.24 @ 15:08:50 Player: KeKe Result: Destroyed by S-10 Pest with Light Assault Rifle Performance ------------- Evolutions (0) 0 Regions Visited (1) 200 Robots Destroyed (18) 90 Value Destroyed (243) 243 Prototype IDs (0) 0 Alien Tech Used (0) 0 Bonus (0) 0 TOTAL SCORE: 533 Bonus ------- None Cogmind --------- Core Integrity 0/250 Matter 295/300 Energy 26/100 System Corruption 0% Temperature Cool (0) Movement Flying (37) Location -10/Materials Parts ------- > --- POWER (1) -------- (None) > --- PROPULSION (2) --- Flight Unit Flight Unit > --- UTILITY (2) ------ Small Storage Unit > --- WEAPON (2) ------- (None) > --- INVENTORY (8) ---- Wheel Cooling System Sensor Array Signal Interpreter Seismic Detector Peak State ------------ > --- POWER ------------ Light Ion Engine > --- PROPULSION ------- Compact Wheel Compact Wheel > --- UTILITY ---------- Small Storage Unit Tractor Beam > --- WEAPON ----------- Light Assault Rifle Mining Laser > --- INVENTORY -------- Light Ion Engine Wheel Wheel Sensor Array Signal Interpreter Improved Terrain Scanner Seismic Detector Small Laser [Rating: 8] Favorites ----------- Power Light Ion Engine Engine Light Ion Engine Propulsion Compact Wheel Wheel Compact Wheel Flight Unit Flight Unit Utility Small Storage Unit Device Tractor Beam Storage Small Storage Unit Weapon Light Assault Rifle Energy Gun Small Laser Ballistic Gun Light Assault Rifle Special Weapon Mining Laser Build | -11 -10 ------- Run | Yrd Mat Slots Evolved . | . . Power . | . . Propulsion . | . . Utility . | . . Weapon . | . . Parts Attached 14 | 7 7 Power 2 | 1 1 Engine 2 | 1 1 Core . | . . Reactor . | . . Propulsion 6 | 2 4 Treads . | . . Leg . | . . Wheel 3 | 2 1 Hover . | . . Flight 3 | . 3 Utility 2 | 2 . Device 1 | 1 . Storage 1 | 1 . Processor . | . . Hackware . | . . Protection . | . . Artifact . | . . Weapon 4 | 2 2 Energy Gun 1 | 1 . Energy Cannon . | . . Ballistic Gun 2 | 1 1 Ballistic Cannon . | . . Launcher . | . . Special Weapon 1 | . 1 Impact Weapon . | . . Slashing Weapon . | . . Piercing Weapon . | . . Special Melee Weapon . | . . Unidentified Prototypes . | . . Parts Lost 9 | . 9 Power 2 | . 2 Propulsion 3 | . 3 Utility 1 | . 1 Weapon 3 | . 3 Highest Loss Streak 9 | . 9 To Critical Strikes . | . . Average Backups 5 | 2 7 Power . | . . Propulsion 1 | . 1 Utility 2 | . 3 Weapon . | . . Tool/Special . | . . Unused Backups 6 | . 6 Power . | . . Propulsion 1 | . 1 Utility 5 | . 5 Weapon . | . . Tool/Special . | . . Average Slot Usage (%) 90 | . 90 Engine 11 | . 11 Wheel 26 | . 26 Device 10 | . 10 Storage 14 | . 14 Energy Gun 7 | . 7 Ballistic Gun 16 | . 16 Special Weapon 1 | . 1 Peak Build Rating 8 | 7 8 Average Rating 6 | 5 6 On Entrance 3 | . 7 Naked Turns . | . . Heaviest Build 11 | 11 11 Greatest Support 32 | 32 32 Greatest Overweight (x) 1 | . 1 Average Overweight (x) . | . . Largest Inventory Capacity 8 | 8 8 Average Capacity 7 | 7 8 Most Carried 8 | 6 8 Average Carried 5 | 2 7 Final Capacity 8 | 8 8 Final Carried 6 | 6 5 Class Distribution -------------------- 100% | Mutant Dominant Class ---------------- Mutant | -10/Materials Resources | -11 -10 ----------- Run | Yrd Mat Matter Collected 402 | 284 118 Remotely 170 | 98 72 Salvage Created 430 | 184 246 Parts 40 | 18 22 Haulers Intercepted . | . . Recyclers Shooed . | . . Parts Field Recycled . | . . Retrieved Matter . | . . Parts Self-Destructed . | . . Prevented . | . . Kills | -11 -10 ------- Run | Yrd Mat Combat Hostiles Destroyed 12 | . 12 Guns 12 | . 12 Classes Destroyed 4 | 2 2 Tunneler 5 | 5 . Recycler 1 | 1 . Swarmer 9 | . 9 Grunt 3 | . 3 Best Kill Streak 8 | 4 8 Combat Bots Only 8 | . 8 Max Kills in Single Turn 2 | 1 2 Gunslinging . | . . Exploded . | . . Melee . | . . Uniques/NPCs Destroyed . | . . Combat | -11 -10 -------- Run | Yrd Mat Hostile Shots Fired 106 | . 106 Missed 29 | . 29 Hits 77 | . 77 Projectile 77 | . 77 Critical Strikes 1 | . 1 Damage Taken 723 | . 723 Core 254 | . 254 Absorbed by Shields . | . . Core Remaining (%) 100 | 100 . Volleys Fired 49 | 14 35 Largest 2 | 2 2 Hottest 100 | 60 100 Shots Fired 90 | 28 62 Gun 85 | 28 57 Cannon . | . . Launcher . | . . Special 5 | . 5 Kinetic 69 | 14 55 Thermal 21 | 14 7 Explosive . | . . Electromagnetic . | . . Robot Hit Streak 10 | 7 10 Robot Miss Streak 3 | 2 3 Penetration Max . | . . Secondary Targets . | . . Shots Hit Robots 48 | 16 32 Core Hits 25 | 7 18 Critical Kills . | . . Critical Parts Destroyed . | . . Critical Strikes . | . . Melee Attacks . | . . Impact . | . . Slashing . | . . Piercing . | . . Sneak Attacks . | . . Combat Hostiles . | . . Follow-up Attacks . | . . Damage Inflicted 503 | 167 336 Guns 431 | 167 264 Cannons . | . . Explosions . | . . Melee . | . . Ramming . | . . Kinetic 300 | 60 240 Thermal 203 | 107 96 Explosive . | . . Electromagnetic . | . . Impact . | . . Slashing . | . . Piercing . | . . Highest Corruption . | . . Average Corruption . | . . Corruption Purged . | . . Corruption Blocked . | . . Overload Shots . | . . Overflow Damage . | . . Projectiles . | . . Explosions . | . . Melee . | . . Knockbacks . | . . Impact . | . . Kinetic . | . . Secondary . | . . Self-Inflicted Damage . | . . Shots . | . . Rammed . | . . Targets Rammed . | . . Kicked . | . . Crushed . | . . Highest Temperature 40 | 40 24 Average Temperature 12 | 18 9 Received Heat Transfer 216 | . 216 Siege Activations . | . . Martial Activations . | . . Shielding Activations . | . . Robots Disrupted . | . . Combat Hostiles . | . . Robots Corrupted . | . . Combat Hostiles . | . . Parts Fried . | . . Impact Corruptions . | . . Robots Melted . | . . Combat Hostiles . | . . Parts Melted . | . . Heat Transferred 450 | 250 200 Parts Sabotaged . | . . Parts Stolen . | . . Parts Stripped . | . . Power Chain Reactions . | . . Alert | -11 -10 ------- Run | Yrd Mat Maximum Alert Level 1 | . 1 Low Security (%) 81 | 100 76 Level 1 18 | . 23 Level 2 . | . . Level 3 . | . . Level 4 . | . . Level 5 . | . . High Security . | . . Max Security . | . . Peak Influence 301 | 10 301 Initial . | . . Average 61 | 2 79 Influence Increases 482 | 30 452 Destroy 0b10 Robot/C 240 | . 240 Destroy 0b10 Robot/NC 30 | 30 . Destroy Leader 40 | . 40 Successful Hack 6 | . 6 Disable Machine 15 | . 15 Destroy Structure 1 | . 1 Partial Spotted 15 | . 15 Lose Combat Pursuer 135 | . 135 Influence Decreases 230 | 30 200 Time Decay 140 | 30 110 Lost Part 90 | . 90 Squads Dispatched 3 | . 3 Investigation 1 | . 1 Extermination . | . . Reinforcement 2 | . 2 Assault . | . . Garrison . | . . Intercept . | . . Searches Triggered . | . . Construction Impeded . | . . Haulers Reinforced . | . . Active Scanning Responses . | . . Cargo Convoy Interrupts . | . . Stealth | -11 -10 --------- Run | Yrd Mat Distress Signals . | . . Communications Jammed . | . . Distress Signals . | . . Times Spotted 21 | . 21 Peak Tracking Total 13 | . 13 Tactical Retreats 3 | . 3 Traps | -11 -10 ------- Run | Yrd Mat Traps Triggered 1 | . 1 Indirectly . | . . Trap Hack Attempts . | . . Triggered . | . . Disarmed . | . . Reprogrammed . | . . Reused . | . . Traps Extracted . | . . Installed . | . . Triggered . | . . Machines | -11 -10 ---------- Run | Yrd Mat Machines Disabled 1 | . 1 Max in Single Turn 1 | . 1 Machines Repaired . | . . Machines Dismantled . | . . Machines Sabotaged . | . . Overloaded Fab Kills . | . . Hacking | -11 -10 --------- Run | Yrd Mat Machines Accessed 1 | . 1 Terminals 1 | . 1 Fabricators . | . . Repair Stations . | . . Recycling Units . | . . Scanalyzers . | . . Garrison Access . | . . Total Hacks 2 | . 2 Successful 1 | . 1 Failed 1 | . 1 Catastrophic 1 | . 1 Database Lockouts . | . . Manual 2 | . 2 Terminals 2 | . 2 Fabricators . | . . Repair Stations . | . . Recycling Units . | . . Scanalyzers . | . . Garrison Access . | . . Terminal Hacks 1 | . 1 Zone Layout 1 | . 1 Fabricator Hacks . | . . Repair Station Hacks . | . . Recycling Unit Hacks . | . . Scanalyzer . | . . Garrison Access Hacks . | . . Unauthorized Hacks . | . . Terminals . | . . Fabricators . | . . Repair Stations . | . . Recycling Units . | . . Scanalyzers . | . . Garrison Access . | . . Data Cores Recovered . | . . Used . | . . Hacking Detections . | . . Full Trace Events . | . . Feedback Events . | . . Feedback Blocked . | . . Robot Schematics Acquired . | . . Robots Built . | . . Authchips . | . . Time . | . . Total Robot Build Rating . | . . Part Schematics Acquired . | . . Parts Built . | . . Authchips . | . . Time . | . . Total Part Build Rating . | . . Parts Repaired . | . . Time . | . . Parts Recycled . | . . Recycled Matter . | . . Retrieved Matter . | . . Retrieved Components . | . . Parts Scanalyzed . | . . Part Schematics Acquired . | . . Parts Damaged . | . . Bothacking | -11 -10 ------------ Run | Yrd Mat Used RIF Installer . | . . Robots Hacked . | . . Non-combat . | . . Combat . | . . Robot Hacks Applied . | . . Relay Couplers Released . | . . Fabnet Peak Effective % . | . . Robots Rewired . | . . Allies Hacked . | . . Hacks Repelled . | . . Allies | -11 -10 -------- Run | Yrd Mat Total Allies . | . . Largest Group . | . . Highest-Rated Group . | . . Highest-Rated Ally . | . . Total Orders . | . . Ally Attacks . | . . Total Damage . | . . Kills . | . . Allies Corrupted . | . . Allies Melted . | . . Intel | -11 -10 ------- Run | Yrd Mat Active Infowar (turns) . | . . Robot Analysis Total . | . . Derelict Logs Recovered . | . . Drone Launches . | . . Drone Recoveries . | . . Exploration | -11 -10 ------------- Run | Yrd Mat Turns Passed 477 | 113 364 Spaces Moved 283 | 56 227 Core 2 | 2 . Treads . | . . Legs . | . . Wheels 273 | 54 219 Hover . | . . Flight 8 | . 8 Fastest Speed 37 | 50 37 Average Speed 98 | 98 99 Slowest Speed 120 | 100 120 Overloaded Moves . | . . Propulsion Burnouts . | . . Robots Hopped 1 | . 1 Potential Cave-ins . | . . Cave-ins Triggered . | . . Exploration Rate (%) 20 | 5 35 Regions Visited 1 Branch Regions . Pre-discovered Areas . | . . Known Exits Taken . | . . Unknown Exits Taken 1 | 1 . Scrap Searched . | . . Spaces Dug . | . . Terrain Destroyed 1 | . 1 Melee . | . . Projectile 1 | . 1 AOE . | . . Terrain Rammed . | . . Walls Destroyed . | . . Machines Disabled . | . . Actions | -11 -10 --------- Run | Yrd Mat Total 387 | 85 302 Wait 29 | 3 26 Move 280 | 55 225 Hop 1 | . 1 Pick Up 9 | 6 3 Fast Attach 11 | 7 4 Attach 3 | . 3 Detach . | . . Swap 2 | . 2 Drop 3 | . 3 Fire 49 | 14 35 Melee . | . . Ram . | . . Kick . | . . Crush . | . . Escape Stasis . | . . Rewire . | . . Trap . | . . Miscellaneous . | . . Route ------- -11/Scrapyard -10/Materials (discovered 3 exits: [*Mat] / [*Min x2]) History --------- Turn | Location | Event 5 | -11/Scrapyard | Discovered new exit (range 15) 114 | -11/Scrapyard | Entered Materials 179 | -10/Materials | Discovered new exit (range 8) 258 | -10/Materials | Discovered new exit (range 11) 305 | -10/Materials | Build established: Mutant 344 | -10/Materials | Discovered new exit (range 16) 422 | -10/Materials | Core integrity fell below 50% 444 | -10/Materials | Destroyed 8 combat bots 471 | -10/Materials | Core integrity fell below 20% 478 | -10/Materials | Destroyed by S-10 Pest with Light Assault Rifle Last Messages --------------- 00432_ Lgt. Assault Rifle destroyed. 00432_ R-06 Scavenger collects Lgt. Assault Rifle. 00432_ K-01 Serf cleans the Terminal. 00438_ Lgt. Assault Rifle destroyed. 00440_ Acquired 16 matter. 00442_ Acquired 10 matter. 00453_ U-05 Engineer builds a Wall. 00455_ Wheel destroyed. 00463_ Mining Laser destroyed. 00466_ K-01 Serf collects debris. 00467_ Acquired Flight Unit. 00468_ Dropped Com. Wheel. 00472_ Flight Unit destroyed. 00472_ Acquired Flight Unit. 00473_ G-34 Mercenary heat spikes uncontrollably. 00473_ K-01 Serf cleans the Terminal. 00474_ G-34 Mercenary heat short circuits Sml. Laser. 00475_ G-34 Mercenary heat damages Ion Engine. 00475_ Acquired Flight Unit. 00477_ Acquired 20 matter. Map ----- +----------------------------------------------------+ | ?????????????????????????????????????????????????? | | ?????????????????????????????????????????????????? | | ????????????#####????????????????????????????????? | | ????????????# ????????????????????????????????? | | ????????????# < ????????????????????????????????? | | ????????????# ????????????????????????????????? | | ????????????+ ????????????????????????????????? | | ????????????# ????????????????????????????????? | | ????????????# ????????????????????????????????? | | ???????????? #????????????????????????????????? | | ?? ########## #??????????????# ????????????????? | | ??#######???# #??????????????# ????????????????? | | ?? #???# #??????????????# ????????????????? | | ?? #???# #################????????????????? | | ?? #???# ????????????????? | | ?? #???# * ????????????????? | | ?? #???# % ????????????????? | | ??#######???#### ##############????????????????? | | ???????????????# #???# ????????????????? | | ???????????????# #???# ????????????????? | | ???????????????# #???# """""????????????????? | | ???????????????# #???# """"""????????????????? | | ??????????????## ##??# """ "????????????????? | | ????########### #??# ????????????????? | | ????# #??##########????????????????? | | ????# * T*%#####@ #????????????????? | | ????#=*=[ =![%*%+ s #????????????????? | | ????#% %####### *#####%s s #????????????????? | | ????# =*#?????#######???# """ ! #????????????????? | | ????# [#?????????#######g""" #????????????????? | | ???## ########### # """ #????????????????? | | #### #% #????????????????? | | / """ #????????????????? | | T # """ #????????????????? | | ########## # """ #????????????????? | | +### #????????## ## #????????????????? | | #######?????????# ##########????????????????? | | #???????????????# # "T" ##????????????????? | | "" #???????????????# + ##????????????????? | | "" #???????????????# # ##????????????????? | | "" #???????????????# ##########????????????????? | | #?????????????????????????????????????????????? | | "" #?????????????????????????????????????????????? | | "" #?????????????????????????????????????????????? | | "" #?????????????????????????????????????????????? | | #?????????????????????????????????????????????? | | #?????????????????????????????????????????????? | | % #?????????????????????????????????????????????? | | ####?????????????????????????????????????????????? | | ?????????????????????????????????????????????????? | +----------------------------------------------------+ Best States ------------- Heat Dissipation 25 Energy Generation 10 Energy Capacity 125 Matter Stores 300 Matter Capacity 300 Sight Range 16 Terrain Scan Density 10 Evasion (%) 40 Item Schematics ----------------- None Robot Schematics ------------------ None Fabricated ------------ Nothing Repaired ---------- Nothing Alien Tech Used ----------------- None Achievements -------------- None Challenges ------------ None Game ------ Seed LegEtherialReplicator Manual? 0 Play Time 00:08:56 Cumulative 86.4 hours Start 2025.05.24 @ 15:00:58 End 2025.05.24 @ 15:08:50 Sessions 1 Manual Loads 0 Difficulty Rogue Special Mode None Game No. 79 Rogue 79 Adventurer 0 Explorer 0 Win Type - Total 1 Types 1/0/0/0/0/0/0/0/0/0 Lore% 41 Gallery% 41 Achievement% 43 Wizard Run 0 Options --------- Layout 0 ASCII 0 Keyboard 0 Movement Mouse Keybinds 0 Fullscreen 2 Font 18/SmallcapsGlow Map View 76x50 Zoom Use 0% Tactical HUD 1 Map Filters NONE Filters NONE Steam 1 RUN: ec51d8fd-5623-48ea-baef-533caa9766fa